bitfinex/quotes_ETHUSD_20250114
["timestamp","ask_amount","ask_price","bid_price","bid_amount"]
[1736885625397,0.1667551,3211.4,3211.1,3.26225938]
[1736885626390,0.1667551,3211.4,3211.0,3.11428]
[1736885626771,0.1667551,3211.4,3210.9,6.00303963]
[1736885626772,0.8282,3211.3,3210.9,6.00303963]
[1736885626962,0.8282,3211.3,3210.9,3.88864963]
[1736885627291,0.8282,3211.3,3210.9,0.62639025]
[1736885628087,0.1667551,3211.4,3210.9,0.62639025]
[1736885628285,0.1667551,3211.4,3211.0,3.11428]
[1736885628664,0.1667551,3211.4,3210.9,3.62639025]
[1736885628865,0.1667551,3211.4,3211.3,6.114]
[1736885629557,0.1667551,3211.4,3211.3,9.37625938]
[1736885629757,0.1667551,3211.4,3211.3,6.114]
[1736885630056,0.1667551,3211.4,3211.3,9.37625938]
[1736885630266,0.1667551,3211.4,3211.3,10.18625938]
[1736885630682,0.1667551,3211.4,3211.3,6.924]
[1736885630883,0.1667551,3211.4,3211.3,6.114]
[1736885631083,0.1667551,3211.4,3211.1,3.91213754]
[1736885631084,0.1667551,3211.4,3211.1,3.11415]
[1736885631279,0.1667551,3211.4,3211.0,4.72213754]
[1736885631493,0.1667551,3211.4,3211.2,3.26338659]
[1736885631494,0.9949551,3211.4,3211.2,3.26338659]
[1736885631879,0.8282,3211.3,3210.9,3.26338659]
[1736885632096,3.11416,3211.2,3210.9,3.26338659]
[1736885632276,1.222436,3211.1,3210.6,3.26338659]
[1736885632672,0.9949551,3211.4,3210.9,3.11438]
[1736885632911,0.1667551,3211.4,3211.3,3.114]
[1736885633408,0.1667551,3211.4,3211.3,6.37738659]
[1736885633879,0.1667551,3211.4,3211.3,3.114]
[1736885634214,0.1667551,3211.4,3211.3,6.37738659]
[1736885635065,0.1667551,3211.4,3211.3,6.114]
[1736885636668,0.1667551,3211.4,3211.3,9.37668236]
[1736885637400,0.1667551,3211.4,3211.3,6.114]
[1736885639871,0.1667551,3211.4,3211.3,3.0]
[1736885640272,0.1667551,3211.4,3211.1,3.91213754]
[1736885640476,0.1667551,3211.4,3211.2,3.26175116]
[1736885640695,0.1667551,3211.4,3211.3,3.114]
[1736885641000,0.1667551,3211.4,3211.3,6.114]
[1736885641198,0.1667551,3211.4,3211.3,9.37575116]
[1736885641405,0.1667551,3211.4,3211.3,6.114]
[1736885643777,0.1667551,3211.4,3211.3,6.94373334]
[1736885643986,0.1667551,3211.4,3211.3,6.9126]
[1736885644173,0.1667551,3211.4,3211.3,10.82655255]
[1736885644572,0.8198,3212.5,3211.9,0.7986]
[1736885644770,0.8198,3213.3,3212.5,3.11276]
[1736885645007,0.8198,3213.3,3212.4,0.7986]
[1736885645606,0.8198,3213.3,3212.8,3.11254]
[1736885646311,0.8198,3213.3,3212.9,3.11237]
[1736885646508,0.8198,3213.3,3212.6,6.1127]
[1736885646691,0.8198,3213.3,3212.8,3.11251]
[1736885646870,3.11212,3213.3,3212.6,3.0]
[1736885647075,0.8198,3213.1,3212.5,3.25951326]
[1736885647288,0.8198,3213.0,3212.3,3.25951326]
[1736885647692,0.8198,3213.0,3212.2,3.11312]
[1736885647894,3.11246,3212.9,3212.2,0.60967928]
[1736885648087,3.11246,3212.9,3212.1,3.0]
[1736885648420,3.11246,3212.9,3211.6,10.60700467]
[1736885648421,3.11288,3212.5,3211.8,3.8751166]
[1736885648570,0.8198,3212.6,3211.8,3.8751166]
[1736885648911,3.93291,3212.3,3211.8,3.25951326]
[1736885649111,3.11324,3212.1,3211.4,3.25951326]
[1736885649278,0.8198,3212.1,3211.4,3.25951326]
[1736885649482,1.213088,3212.1,3211.4,3.0]
[1736885649808,1.213088,3212.1,3211.3,3.11399]
[1736885650005,1.213088,3212.1,3211.4,3.11389]
[1736885650210,0.8198,3212.7,3211.6,0.7986]
[1736885650417,0.8198,3212.7,3212.1,3.11316]
[1736885651214,0.8198,3212.7,3212.1,3.11322]
[1736885651413,0.8198,3212.7,3212.3,3.11302]
[1736885651604,0.8198,3212.7,3212.1,3.11318]
[1736885651798,0.8198,3212.7,3212.4,3.11292]
[1736885652011,0.8198,3212.7,3212.0,3.25951326]
[1736885652012,0.8198,3213.3,3212.7,3.11258]
[1736885652225,0.8198,3213.3,3212.5,3.11283]
[1736885652417,0.8198,3213.3,3212.3,3.11298]
[1736885652590,0.8198,3213.3,3212.4,0.63661817]
[1736885653022,0.8198,3213.3,3212.7,3.11258]
[1736885653224,0.8198,3213.3,3212.4,3.74951817]
[1736885653490,0.8198,3213.3,3212.7,3.11261]
[1736885653699,3.93197,3213.2,3212.4,0.63661817]
[1736885653914,3.93216,3213.0,3212.3,6.25951326]
[1736885654113,3.93216,3213.0,3212.3,3.0]
[1736885654329,3.93216,3213.0,3212.1,3.1132]
[1736885654526,3.93216,3213.0,3212.0,3.7986]
[1736885654527,0.8198,3212.8,3212.0,6.11329]
[1736885655611,0.8198,3212.8,3212.2,3.11312]
[1736885655818,0.8198,3212.8,3212.1,3.0]
[1736885656129,0.8198,3212.8,3212.0,3.0]
[1736885656755,0.8198,3212.8,3212.2,3.11304]
[1736885657617,0.8198,3212.8,3212.3,3.11299]
[1736885659035,0.8198,3212.8,3212.0,3.11324]
[1736885659204,1.213018,3212.8,3212.1,3.0]
[1736885659402,0.7927,3212.7,3211.9,3.61777048]
[1736885659793,0.7927,3212.7,3212.0,3.11331]
[1736885659996,0.7927,3212.7,3211.9,0.61777048]
[1736885660193,0.7927,3212.7,3212.0,3.0]
[1736885660638,0.7927,3212.5,3212.0,3.0]
[1736885660929,0.7927,3212.5,3212.1,3.11319]
[1736885661129,0.7927,3212.5,3211.9,0.61777048]
[1736885661130,0.7927,3212.5,3212.0,3.0]
[1736885661311,0.7927,3212.5,3212.0,3.11324]
[1736885661507,0.7927,3212.5,3212.1,3.11322]
[1736885661812,0.7927,3212.5,3212.2,3.11306]
[1736885662492,0.7927,3212.5,3212.0,3.11324]
[1736885662896,0.7927,3212.5,3212.0,3.11325]
[1736885663097,0.7927,3212.5,3212.0,3.0]
[1736885663325,0.7927,3212.5,3212.2,3.11312]
[1736885663517,0.7927,3212.5,3212.0,3.1133]
[1736885665035,0.7927,3212.5,3212.2,3.11312]
[1736885665339,0.7927,3212.5,3211.9,3.0]
[1736885665900,0.7927,3212.5,3211.9,3.7717]
[1736885666107,0.7927,3213.3,3212.2,3.0]
[1736885666339,0.390972,3213.2,3212.5,3.11281]
[1736885666520,0.390972,3213.2,3212.6,3.11273]
[1736885666722,0.7927,3213.3,3212.6,3.11264]
[1736885666902,0.7927,3213.3,3212.7,3.11263]
[1736885667708,0.7927,3213.3,3212.7,3.1126]
[1736885668449,0.7927,3213.3,3212.5,3.11279]
[1736885669908,0.7927,3213.3,3212.3,3.11299]
[1736885670142,0.7927,3213.1,3212.3,3.11299]
[1736885670359,0.7927,3212.9,3212.3,3.11299]
[1736885670899,0.7927,3212.9,3212.2,0.62665822]
[1736885671106,0.7927,3212.9,3212.2,3.73974822]
[1736885671435,0.7927,3212.9,3212.5,3.1128]
[1736885671829,0.7927,3212.9,3212.6,3.11273]
[1736885672542,0.7927,3212.9,3212.2,3.73974822]
[1736885672744,0.7927,3212.9,3212.5,3.1128]
[1736885673843,0.7927,3212.9,3212.3,3.11299]
[1736885674141,0.7927,3212.9,3212.2,6.87979207]
[1736885674362,3.90516,3212.9,3212.2,6.87979207]
[1736885674541,0.7927,3212.7,3212.2,3.62665822]
[1736885675214,0.7927,3212.7,3212.2,6.73973822]
[1736885676036,0.7927,3212.7,3212.2,3.62665822]
[1736885677246,0.7927,3213.1,3212.0,3.25313385]
[1736885677432,0.55,3212.4,3212.0,3.25313385]
[1736885677752,3.90592,3212.1,3212.0,3.25313385]
[1736885677911,4.296512,3212.1,3211.6,3.25313385]
[1736885678343,0.7927,3211.9,3211.6,3.25313385]
[1736885678542,0.7927,3211.9,3211.3,3.25313385]
[1736885680425,0.7927,3211.9,3211.5,3.1138]
[1736885680949,3.11226,3213.1,3211.5,3.1138]
[1736885680950,0.7815,3212.5,3211.6,0.03113496]
[1736885681108,0.7815,3212.5,3212.2,3.11311]
[1736885681307,0.7815,3212.5,3211.9,0.7683]
[1736885681308,0.7815,3212.5,3212.0,3.11324]
[1736885681741,0.7815,3212.5,3211.9,3.25313385]
[1736885681951,0.7815,3212.5,3212.1,3.11322]
[1736885682141,0.7815,3212.5,3211.9,3.25313385]
[1736885682346,0.7815,3212.5,3211.9,6.36650385]
[1736885683315,0.7815,3212.5,3212.1,0.62661588]
[1736885684744,0.7815,3212.5,3212.1,3.73974588]
[1736885684915,0.7815,3212.5,3212.1,0.62661588]
[1736885685316,0.7815,3212.5,3212.1,3.87974973]
[1736885685519,0.7815,3212.5,3212.2,3.11312]
[1736885686716,0.7815,3212.5,3212.1,3.87974973]
[1736885687272,0.7815,3212.5,3212.1,3.25313385]
[1736885687435,0.7815,3212.5,3212.0,3.25313385]
[1736885687436,0.389424,3212.4,3212.0,3.25313385]
[1736885687638,0.7815,3212.5,3211.8,3.25313385]
[1736885687639,3.89436,3212.5,3211.8,3.25313385]
[1736885688248,0.8178,3212.4,3211.8,3.25313385]
[1736885688967,0.8178,3212.4,3211.8,6.97696232]
[1736885689480,0.8178,3212.4,3212.0,3.25313385]
[1736885690051,3.11312,3212.3,3212.0,3.25313385]
[1736885690251,0.8178,3212.1,3212.0,3.25313385]
[1736885690454,0.8178,3212.1,3211.8,3.25313385]
[1736885690752,0.8178,3212.1,3211.6,3.25313385]
[1736885691834,0.8178,3212.0,3211.6,3.25313385]
[1736885692267,0.8178,3211.9,3211.6,3.25313385]
[1736885692467,1.3678,3211.8,3211.6,3.25313385]
[1736885692675,0.8178,3211.7,3211.5,3.25313385]
[1736885692979,0.8178,3211.6,3211.5,3.25313385]
[1736885693476,0.8178,3211.6,3211.1,3.88278449]
[1736885694095,0.8178,3211.6,3211.1,0.62965064]
[1736885697788,0.8178,3212.1,3211.3,3.11392]
[1736885697971,3.93103,3212.1,3211.1,7.75010449]
[1736885698171,0.8178,3211.9,3211.2,3.1141]
[1736885698550,0.8178,3211.9,3211.1,3.88278449]
[1736885698551,3.93122,3211.9,3211.1,3.88278449]
[1736885698753,3.93122,3211.9,3211.1,6.99696449]
[1736885698754,0.8178,3211.9,3211.1,6.99696449]
[1736885698952,0.8178,3211.9,3211.1,3.74383064]
[1736885699962,0.8178,3211.9,3211.2,3.11407]
[1736885700351,0.311312,3212.2,3211.2,3.11407]
[1736885700352,0.8178,3212.2,3211.8,3.11351]
[1736885700885,0.8178,3213.0,3212.0,3.1133]
[1736885701089,0.8178,3213.0,3211.9,3.7532]
[1736885701292,0.8178,3213.0,3212.5,3.11282]
[1736885701452,3.11705,3213.4,3212.5,0.815]
[1736885701453,0.8288,3213.3,3212.5,0.815]
[1736885701658,0.8288,3213.3,3212.6,6.11274]
[1736885701963,0.005,3213.4,3212.8,3.1125]
[1736885702180,0.005,3213.4,3212.5,3.815]
[1736885702483,0.005,3213.4,3212.6,3.25313385]
[1736885702484,0.8288,3213.3,3212.6,3.25313385]
[1736885702866,3.11227,3213.1,3212.6,3.25313385]
[1736885703188,0.8288,3213.0,3212.4,3.25313385]
[1736885703390,0.8288,3213.0,3212.4,3.86194609]
[1736885703692,3.11245,3212.9,3212.1,3.25313385]
[1736885703989,3.11245,3212.9,3212.2,3.25313385]
[1736885704358,3.11245,3212.9,3212.1,3.0]
[1736885704551,0.8288,3213.0,3212.1,3.62415416]
[1736885704791,0.8288,3213.0,3212.5,3.11282]
[1736885705086,0.8288,3213.0,3212.1,3.62415416]
[1736885705087,0.8288,3213.0,3212.1,10.4582193]
[1736885705287,0.8288,3213.3,3212.9,3.11244]
[1736885705490,0.8288,3213.3,3213.0,3.11233]
[1736885706292,0.8288,3213.3,3212.8,3.73410717]
[1736885706792,0.8288,3213.3,3213.1,3.11225]
[1736885706956,0.8288,3213.3,3212.8,0.62159717]
[1736885706957,0.005,3213.4,3213.3,3.11206]
[1736885707296,0.005,3213.4,3213.3,6.11206]
[1736885707475,0.005,3213.4,3213.3,6.92706]
[1736885707799,0.1667551,3214.6,3213.2,3.58093129]
[1736885707800,0.1667551,3214.6,3214.5,3.1109]
[1736885708154,0.1667551,3214.6,3214.3,0.03110684]
[1736885708355,0.1667551,3214.6,3214.2,3.2549829]
[1736885708356,0.8288,3214.5,3214.2,3.2549829]
[1736885708559,3.11109,3214.3,3214.2,3.2549829]
[1736885708790,3.505079,3214.3,3214.2,3.2549829]
[1736885708992,0.393989,3214.3,3214.2,3.2549829]
[1736885709293,0.393989,3214.3,3213.3,3.0]
[1736885709294,3.505159,3214.3,3213.3,3.0]
[1736885709588,0.8288,3214.5,3213.1,6.74702866]
[1736885709589,3.93974,3214.5,3213.1,6.74702866]
[1736885709789,0.8288,3214.5,3213.3,3.58093129]
[1736885709995,0.8288,3214.5,3213.3,6.58093129]
[1736885710312,0.8288,3214.5,3213.8,3.11156]
[1736885710871,0.8288,3214.5,3213.7,3.0]
[1736885711105,0.1667551,3214.6,3214.2,3.11117]
[1736885711323,0.1667551,3214.6,3213.9,4.39593129]
[1736885711473,0.1667551,3214.6,3214.2,3.11111]
[1736885711800,0.1667551,3214.6,3214.0,3.11137]
[1736885711997,0.1667551,3214.6,3213.9,0.61136514]
[1736885712172,0.1667551,3214.6,3213.7,9.3666529]
[1736885712383,0.1667551,3214.6,3213.8,3.11153]
[1736885712970,0.1667551,3214.6,3213.9,3.0]
[1736885714093,3.11102,3214.4,3213.4,3.11195]
[1736885714424,3.68820561,3214.6,3213.5,3.11186]
[1736885714573,3.68820561,3214.6,3213.7,3.0]
[1736885714773,0.57737561,3214.6,3213.7,3.0]
[1736885715219,0.57737561,3214.6,3213.7,3.11159]
[1736885716410,0.1667551,3214.6,3213.4,0.61547956]
[1736885716580,0.1667551,3214.6,3213.5,3.0]
[1736885716789,0.1667551,3214.6,3214.4,3.11097]
[1736885716992,0.1667551,3214.6,3214.5,3.1109]
[1736885717188,0.1667551,3214.6,3214.3,3.11105]
[1736885717511,0.1667551,3214.6,3213.9,3.0]
[1736885717812,0.1667551,3214.6,3213.8,0.60925855]
[1736885718015,0.1667551,3214.6,3214.3,3.11106]
[1736885718323,0.1667551,3214.6,3214.1,3.0]
[1736885718621,3.11123,3214.2,3213.2,7.1717629]
[1736885718818,0.7917,3214.0,3213.0,3.11232]
[1736885718988,3.11151,3213.9,3212.9,0.8047]
[1736885719191,3.11159,3213.8,3212.7,3.2549829]
[1736885719378,3.11191,3213.5,3212.6,3.30869384]
[1736885719589,0.7917,3213.4,3212.6,6.42143384]
[1736885720413,0.7917,3213.4,3212.6,3.30869384]
[1736885720627,3.11206,3213.3,3212.6,3.30869384]
[1736885720805,0.7917,3213.4,3212.4,0.61555435]
[1736885721193,0.7917,3213.4,3212.9,3.11237]
[1736885721404,0.7917,3213.4,3212.5,3.11284]
[1736885721718,0.7917,3213.4,3212.8,3.0]
[1736885722121,0.7917,3213.4,3212.9,3.11243]
[1736885724095,0.7917,3213.4,3212.8,3.0]
[1736885724308,0.7917,3213.4,3212.6,3.0]
[1736885724721,1.182058,3213.4,3212.2,3.91778]
[1736885724919,1.182058,3213.4,3212.7,3.11256]
[1736885724920,0.7917,3213.4,3212.7,3.11256]
[1736885725095,0.7917,3213.4,3212.5,0.62806299]
[1736885725418,0.7917,3213.4,3212.6,3.11271]
[1736885725717,0.7917,3213.4,3211.9,0.8047]
[1736885725925,1.22896313,3213.4,3211.9,0.8047]
[1736885726136,1.22896313,3213.4,3211.9,3.8047]
[1736885726438,8.03473129,3213.3,3212.2,3.11312]
[1736885726749,1.3417,3213.3,3211.9,3.8047]
[1736885726934,3.1123,3213.1,3211.8,3.0]
[1736885727134,0.17789631,3213.2,3212.2,3.11311]
[1736885727439,0.17789631,3213.2,3212.5,3.1128]
[1736885727648,0.7917,3213.3,3212.0,0.63909914]
[1736885727796,0.7917,3213.3,3212.8,3.11252]
[1736885728500,0.7917,3213.3,3212.9,3.11244]
[1736885728924,0.7917,3213.3,3213.0,3.1123]
[1736885729105,0.7917,3214.5,3213.6,3.11177]
[1736885729294,0.7917,3214.5,3213.6,6.58093129]
[1736885729493,0.7917,3214.5,3214.4,3.111]
[1736885729697,0.7917,3215.0,3214.5,3.1109]
[1736885729937,0.7917,3215.5,3214.5,6.1109]
[1736885730736,0.7917,3215.5,3214.5,9.69183129]
[1736885731299,0.7917,3215.5,3214.5,6.1109]
[1736885733441,5.1e-06,3214.6,3214.5,6.1109]
[1736885736203,5.1e-06,3214.6,3214.5,6.75961554]
[1736885736398,5.1e-06,3214.6,3214.5,6.72851774]
[1736885737099,5.1e-06,3214.6,3214.5,7.27851774]
[1736885737256,0.7917,3216.7,3214.6,3.55]
[1736885737431,0.7917,3216.7,3216.0,3.10944]
[1736885737732,0.7917,3216.7,3215.6,6.10978]
[1736885737733,0.7917,3216.7,3215.6,3.0]
[1736885737937,0.7917,3216.7,3215.7,3.0]
[1736885738140,3.10899,3216.5,3215.3,0.8047]
[1736885738445,0.55,3216.6,3215.5,3.10992]
[1736885738644,0.7917,3216.7,3215.4,3.73201086]
[1736885738809,0.7917,3216.7,3215.4,0.62204086]
[1736885739144,1.181737,3216.7,3215.7,3.10974]
[1736885739328,1.181737,3216.7,3215.9,3.0]
[1736885739708,4.290507,3216.7,3215.7,3.0]
[1736885740133,4.290507,3216.7,3215.7,3.10973]
[1736885740545,1.181737,3216.7,3215.9,3.0]
[1736885740744,1.181737,3216.7,3215.9,3.10953]
[1736885741242,0.7917,3216.7,3215.4,3.62204086]
[1736885741413,0.7917,3216.7,3215.9,3.10948]
[1736885742212,0.7917,3216.7,3215.7,3.0]
[1736885742412,0.7917,3216.7,3216.3,3.0]
[1736885742612,0.7917,3216.7,3216.5,3.10896]
[1736885743145,0.7917,3216.7,3215.8,3.0]
[1736885743351,0.7917,3216.7,3216.2,3.0]
[1736885743714,0.7917,3216.7,3216.0,0.6374688]
[1736885743910,0.7917,3216.7,3215.5,3.2302668]
[1736885744144,0.7917,3216.7,3215.6,3.0]
[1736885744350,0.7917,3216.7,3216.1,3.10934]
[1736885744547,0.7917,3216.7,3215.6,3.0]
[1736885744548,0.7917,3216.7,3216.2,3.10918]
[1736885744789,0.7917,3216.7,3216.0,3.10944]
[1736885744957,0.7917,3216.7,3215.9,3.0]
[1736885745379,0.7917,3216.7,3215.9,6.10954]
[1736885745550,1.18173,3216.7,3215.9,6.10954]
[1736885746111,0.7917,3216.7,3216.3,3.10915]
[1736885746412,0.7917,3216.7,3215.9,0.03108772]
[1736885746554,0.7697,3217.3,3217.0,3.10848]
[1736885746756,0.1667551,3217.9,3216.7,7.15670481]
[1736885746757,0.7697,3217.6,3216.7,7.15670481]
[1736885747005,0.1667551,3217.9,3217.5,3.10792]
[1736885748002,0.1667551,3217.9,3217.3,0.8085]
[1736885748160,0.1667551,3217.9,3217.5,3.10799]
[1736885748372,0.1667551,3217.9,3217.3,3.91664]
[1736885748575,0.1667551,3217.9,3217.0,3.2302668]
[1736885748801,0.1667551,3217.9,3217.0,3.10847]
[1736885749072,0.55,3217.5,3216.9,3.2302668]
[1736885749271,3.87808,3217.2,3216.6,3.2302668]
[1736885749496,0.7697,3217.2,3216.6,3.2302668]
[1736885749710,3.10863,3216.9,3216.0,3.2302668]
[1736885749911,3.10879,3216.7,3216.0,3.2302668]
[1736885750095,0.387849,3216.6,3215.8,6.10955]
[1736885750276,0.02943051,3216.6,3215.8,3.10955]
[1736885750481,0.7697,3216.8,3215.5,3.10984]
[1736885750810,0.57950608,3216.7,3215.6,3.10975]
[1736885751113,3.68835608,3216.7,3215.6,3.1098]
[1736885751903,3.68835608,3216.7,3215.7,3.10973]
[1736885752136,0.44580561,3216.6,3215.6,3.10983]
[1736885752284,0.02950608,3216.7,3215.6,3.0]
[1736885752469,0.7697,3216.8,3216.3,3.10915]
[1736885752470,0.02945313,3216.5,3216.3,3.10915]
[1736885752804,0.02833268,3216.4,3216.3,3.10915]
[1736885753005,0.7697,3216.8,3216.3,3.10915]
[1736885753213,0.02841585,3216.7,3216.3,3.10915]
[1736885753410,0.02841585,3216.7,3215.7,6.80057521]
[1736885753711,0.7697,3216.8,3216.4,3.10905]
[1736885754006,0.02837807,3216.7,3216.4,3.10905]
[1736885754210,0.7697,3216.8,3216.4,3.10905]
[1736885754588,0.02836296,3216.7,3216.3,3.0]
[1736885754775,3.10802,3217.5,3216.6,3.10887]
[1736885754978,0.33932372,3217.4,3216.6,3.10887]
[1736885755172,0.02852172,3217.4,3216.3,3.57030841]
[1736885755404,0.7697,3217.7,3216.7,3.10868]
[1736885755612,0.02856707,3217.6,3216.7,3.10868]
[1736885756019,0.02856707,3217.6,3216.5,3.10892]
[1736885756318,3.108,3217.5,3216.5,3.10892]
[1736885756493,0.31365671,3217.4,3216.4,3.0]
[1736885756693,0.02852172,3217.4,3216.8,3.10864]
[1736885757217,0.02849905,3217.3,3216.4,3.0]
[1736885757416,0.02849905,3217.3,3216.6,3.10884]
[1736885757605,3.10792,3217.6,3216.6,3.10884]
[1736885757923,0.0285444,3217.5,3216.6,3.10884]
[1736885758218,0.41916084,3217.5,3216.4,3.0]
[1736885758408,0.0285444,3217.5,3216.6,6.67908841]
[1736885758605,0.7697,3217.7,3216.6,6.67908841]
[1736885758806,0.02893306,3217.6,3217.0,3.10843]
[1736885759322,0.02893306,3217.6,3217.0,3.10848]
[1736885759826,0.02893306,3217.6,3216.8,3.10864]
[1736885760326,0.41957037,3217.6,3216.7,3.10868]
[1736885760526,0.02893306,3217.6,3216.7,3.10868]
[1736885760685,3.13686306,3217.6,3216.3,6.57030841]
[1736885760888,0.7597,3217.0,3216.2,0.7697]
[1736885761093,0.7597,3217.0,3216.3,3.7422419]
[1736885761587,0.7597,3217.0,3216.6,3.10884]
[1736885761818,0.7597,3217.0,3216.3,0.6330919]
[1736885761819,0.7597,3217.7,3216.8,3.1086]
[1736885761986,1.16312051,3217.7,3216.8,3.10866]
[1736885762187,3.68597661,3217.6,3216.6,3.10885]
[1736885762428,0.57797661,3217.6,3216.3,3.6330919]
[1736885762597,0.55,3217.4,3216.5,3.10889]
[1736885762804,0.55,3217.0,3215.8,3.2302668]
[1736885762983,0.55,3216.8,3215.8,6.3398268]
[1736885763184,0.7597,3216.9,3216.7,3.10875]
[1736885763440,0.7597,3217.6,3217.0,3.10848]
[1736885763644,0.7597,3217.6,3216.6,3.57030841]
[1736885763645,0.7597,3217.6,3216.7,3.0]
[1736885763803,0.02809749,3217.5,3217.0,3.0]
[1736885764007,0.7597,3217.6,3217.0,3.0]
[1736885764209,0.9264551,3217.9,3217.0,6.10847]
[1736885764409,0.9264551,3217.9,3217.1,3.0]
[1736885764743,0.9264551,3217.9,3217.6,3.10783]
[1736885764940,0.9264551,3217.9,3217.8,3.10771]
[1736885765107,0.1667551,3217.9,3217.6,3.10786]
[1736885765303,0.1667551,3217.9,3217.2,4.19215364]
[1736885765508,0.1667551,3217.9,3217.8,3.10771]
[1736885766119,0.1667551,3217.9,3217.8,9.67801841]
[1736885766537,0.1667551,3217.9,3217.8,6.10771]
[1736885766707,0.1667551,3217.9,3217.8,9.67801841]
[1736885767510,0.1667551,3217.9,3217.8,10.3064651]
[1736885767948,0.1667551,3217.9,3217.8,6.73615669]
[1736885768517,0.1667551,3217.9,3217.8,6.10771]
[1736885770349,0.1667551,3217.9,3217.7,0.62322222]
[1736885770735,0.1667551,3217.9,3217.8,3.10771]
[1736885772549,0.1667551,3217.9,3217.7,3.62322222]
[1736885772849,0.1667551,3217.9,3217.4,6.3383268]
[1736885773154,0.9264551,3217.9,3217.4,3.2302668]
[1736885773457,0.1667551,3217.9,3217.3,0.61363706]
[1736885773656,0.7597,3217.8,3217.1,3.2302668]
[1736885773841,3.10786,3217.7,3217.1,3.2302668]
[1736885774040,0.386756,3217.6,3217.1,3.2302668]
[1736885774350,0.55,3217.7,3216.9,3.0]
[1736885774524,0.55,3217.7,3216.8,3.2302668]
[1736885774725,0.7597,3217.7,3216.9,3.2302668]
[1736885775060,0.7597,3217.7,3216.9,6.2302668]
[1736885775420,0.7597,3217.7,3216.9,3.0]
[1736885775634,0.7597,3217.7,3217.0,3.2302668]
[1736885775635,3.10827,3217.3,3217.0,3.2302668]
[1736885775860,0.7597,3217.2,3217.0,3.2302668]
[1736885776219,0.7597,3217.2,3216.7,3.2302668]
[1736885776627,0.8248,3217.8,3216.9,3.10849]
[1736885776961,0.8248,3217.8,3216.9,6.3387568]
[1736885777262,0.55,3217.7,3216.9,3.2302668]
[1736885777552,4.48288,3217.5,3217.0,3.2302668]
[1736885777721,1.3748,3217.5,3217.0,3.2302668]
[1736885777919,4.48282,3217.5,3216.9,3.2302668]
[1736885778115,0.55,3217.3,3216.9,3.2302668]
[1736885778318,0.55,3217.3,3216.2,3.1092]
[1736885778319,3.93326,3217.1,3216.8,3.2302668]
[1736885778551,3.93319,3217.1,3216.8,3.2302668]
[1736885778757,0.55,3217.0,3216.8,3.2302668]
[1736885779054,0.55,3216.9,3216.6,3.2302668]
[1736885779946,0.55,3216.9,3216.1,3.10933]
[1736885779947,0.55,3216.9,3216.4,3.2302668]
[1736885780256,0.55,3216.9,3216.5,3.2302668]
[1736885780646,0.55,3216.9,3216.3,3.2302668]
[1736885780959,0.8248,3217.1,3216.3,3.2302668]
[1736885781548,0.8248,3217.1,3216.5,3.2302668]
[1736885781858,0.55,3217.0,3216.5,3.2302668]
[1736885782041,0.998319,3217.0,3216.5,3.2302668]
[1736885782554,0.998319,3217.0,3216.4,3.2302668]
[1736885783052,0.8248,3217.1,3216.4,3.2302668]
[1736885783224,0.8248,3217.1,3216.4,6.3392368]
[1736885783760,0.8321,3216.5,3216.4,3.2302668]
[1736885783959,0.55,3216.4,3216.3,3.2302668]
[1736885784164,3.65906,3216.4,3216.3,3.2302668]
[1736885784462,4.857066,3216.4,3216.3,3.2302668]
[1736885784658,1.748006,3216.4,3215.9,3.2302668]
[1736885785033,1.748006,3216.4,3215.6,3.10982]
[1736885785237,0.55,3216.2,3215.5,3.2302668]
[1736885785433,0.55,3216.0,3215.5,3.2302668]
[1736885785958,0.55,3216.0,3215.4,3.11002]
[1736885786366,0.55,3216.0,3215.1,0.62714687]
[1736885786367,0.55,3215.4,3215.1,3.2302668]
[1736885786660,0.74321,3215.4,3215.1,3.2302668]
[1736885786837,0.74321,3215.4,3214.6,3.2302668]
[1736885787038,0.55,3215.4,3214.6,3.2302668]
[1736885787261,0.55,3215.4,3214.5,3.11087]
[1736885787651,0.55,3215.2,3214.3,3.11108]
[1736885787846,0.55,3215.2,3214.4,3.11099]
[1736885788157,0.8321,3215.0,3214.2,3.11115]
[1736885788551,0.55,3214.9,3214.0,3.11137]
[1736885788948,0.8321,3215.0,3213.9,0.63146742]
[1736885789151,0.8321,3215.0,3214.2,3.11117]
[1736885789323,0.8321,3215.0,3214.2,3.11118]
[1736885789324,0.55,3214.9,3214.2,3.11118]
[1736885789524,0.8321,3215.0,3214.3,0.03111005]
[1736885789756,0.8321,3215.0,3214.8,3.11052]
[1736885789945,0.8321,3215.9,3214.3,3.0]
[1736885790262,3.65966,3215.8,3214.7,3.11066]
[1736885790557,3.65966,3215.8,3214.3,3.11106]
[1736885790558,0.8321,3215.5,3214.3,3.11106]
[1736885790859,1.3821,3215.0,3214.3,0.60803588]
[1736885791078,1.3821,3215.0,3213.7,3.2302668]
[1736885791287,1.3821,3215.0,3214.1,3.11123]
[1736885792073,1.831336,3215.0,3214.1,3.11123]
[1736885792362,1.831336,3215.0,3214.0,0.63003411]
[1736885792363,3.66015,3215.3,3214.2,3.1111]
[1736885792521,0.55,3215.3,3214.0,4.20400925]
[1736885792726,0.55,3215.3,3214.3,3.11101]
[1736885792925,3.66021,3215.3,3214.3,3.11101]
[1736885793126,0.55,3215.3,3214.1,3.11127]
[1736885793333,0.8321,3214.8,3214.1,3.11127]
[1736885793562,0.8321,3214.8,3214.0,0.63003411]
[1736885793735,0.8321,3214.8,3214.1,3.11129]
[1736885793939,0.8321,3214.8,3214.2,3.11119]
[1736885794128,0.8321,3214.8,3214.1,3.11129]
[1736885794459,0.8321,3214.8,3214.0,0.63003411]
[1736885794764,0.8321,3214.8,3214.6,3.11078]
[1736885794932,0.8321,3214.8,3214.1,3.7906]
[1736885795124,0.8321,3215.5,3214.7,3.11071]